[Event "Eurasia Open Cup 2018"]
[Site "Jekaterienburg"]
[Date "2018.08.03"]
[Round "3"]
[White "Sarana, Alexey"]
[Black "Drygalov, Andrey"]
[Result "1-0"]
[ECO "D41"]
[WhiteElo "2613"]
[BlackElo "2450"]
[Annotator "RC"]
[PlyCount "115"]
[EventDate "2018.08.01"]
[EventType "swiss"]
[EventCountry "RUS"]
[SourceTitle "playchess.com"]
[Source "ChessBase"]
[SourceQuality "1"]
[TimeControl "5400+30"]

1. d4 {[%emt 0:00:00]} Nf6 {[%emt 0:00:00]} 2. c4 {[%emt 0:00:00]} e6 {[%emt 0:00:00]} 3. Nf3 {[%emt 0:00:00]} d5 {[%emt 0:00:00]} 4. Nc3 {[%emt 0:03:05]} c5 {[%emt 0:00:00]} 5. cxd5 {[%emt 0:04:46]} Nxd5 {[%emt 0:00:50]} 6. g3 {[%emt 0:00:00]} Nc6 {[%emt 0:00:00]} 7. Bg2 {[%emt 0:00:00]} Nxc3 {[%emt 0:00:13]} 8. bxc3 {[%emt 0:00:00]} cxd4 {[%emt 0:05:38]} 9. cxd4 {[%emt 0:00:22]} Bb4+ {[%emt 0:01:56]} 10. Bd2 {[%emt 0:00:13]} Bxd2+ {[%emt 0:03:08]} 11. Qxd2 {[%emt 0:00:15]} O-O {[%emt 0:02:02]} 12. O-O {[%emt 0:00:06]} Qd6 {[%emt 0:04:06]} 13. Qf4 {[%emt 0:07:57]} Qxf4 {[%emt 0:07:53]} 14. gxf4 {[%emt 0:00:00]} Rd8 {[%emt 0:00:40]} 15. e3 {[%emt 0:18:12]} Bd7 {[%emt 0:07:33]} 16. Nd2 {[%emt 0:09:54]} Rac8 {[%emt 0:06:13]} 17. Ne4 {[%emt 0:00:53]} Be8 {[%emt 0:05:57]} 18. Rfc1 {[%emt 0:00:59]} b6 {[%emt 0:03:06]} 19. Rc3 {[%emt 0:15:30]} Ne7 {[%emt 0:05:10]} 20. Rxc8 {[%emt 0:01:32]} Nxc8 {[%emt 0:07:07]} 21. a4 {[%emt 0:01:23]} a5 {[%emt 0:03:51]} 22. Nc3 {[%emt 0:04:46]} Nd6 {[%emt 0:07:16]} 23. Rb1 {[%emt 0:00:09]} Nc4 {[%emt 0:07:09]} 24. Bb7 {[%emt 0:00:00]} Rb8 {[%emt 0:03:37]} 25. Ba6 {[%emt 0:01:04]} Nd6 {[%emt 0:00:11]} 26. Kf1 {[%emt 0:00:00]} Kf8 {[%emt 0:03:35]} 27. Ke2 {[%emt 0:00:42]} Bc6 {[%emt 0:00:58]} 28. Bd3 {[%emt 0:00:00]} Ke7 {[%emt 0:03:47]} 29. e4 {[%emt 0:00:26]} g6 {[%emt 0:01:45]} 30. f3 {[%emt 0:01:18]} Ne8 {[%emt 0:03:10]} 31. Ke3 {[%emt 0:00:00]} Nd6 {[%emt 0:01:34]} 32. h4 {[%emt 0:00:51]} h5 {[%emt 0:00:12]} 33. Rg1 {[%emt 0:02:41]} Rc8 {[%emt 0:00:33]} 34. Kd2 {[%emt 0:01:06]} Rd8 {[%emt 0:00:49]} 35. Re1 {[%emt 0:02:05]} Kf8 {[%emt 0:00:42]} 36. Rb1 {[%emt 0:04:12]} Rb8 {[%emt 0:00:06]} 37. Be2 {[%emt 0:01:54]} Ke7 {[%emt 0:00:19]} 38. Ke3 {[%emt 0:00:08]} Kd8 {[%emt 0:01:46]} 39. f5 {[%emt 0:02:52]} gxf5 {[%emt 0:01:16]} 40. e5 {[%emt 0:00:00]} Nc8 {[%emt 0:00:27]} 41. f4 {[%emt 0:00:33]} Ne7 {[%emt 0:00:15]} 42. Bxh5 {[%emt 0:00:03]} Ng6 {[%emt 0:00:58]} 43. Bxg6 {[%emt 0:05:21]} fxg6 {[%emt 0:00:05]} 44. Rg1 {[%emt 0:00:03]} Be8 {[%emt 0:00:27]} 45. d5 {[%emt 0:00:05]} exd5 {[%emt 0:00:15]} 46. Kd4 {[%emt 0:00:03]} Bf7 {[%emt 0:04:27]} 47. Nb5 {[%emt 0:00:29]} Ke7 {[%emt 0:01:36]} 48. Rc1 {[%emt 0:00:51]} Be6 {[%emt 0:00:39]} 49. Rc7+ {[%emt 0:00:28]} Kf8 {[%emt 0:00:06]} 50. Ra7 {[%emt 0:02:00]} Rc8 {[%emt 0:00:39]} 51. Nc7 {[%emt 0:00:27]} Bd7 {[%emt 0:00:13]} 52. e6 {[%emt 0:00:32]} Bxa4 {[%emt 0:00:00]} 53. Nxd5 {[%emt 0:00:07]} Be8 {[%emt 0:00:48]} 54. Rh7 {[%emt 0:00:35]} Rc6 {[%emt 0:00:37]} 55. Rh8+ {[%emt 0:00:05]} Kg7 {[%emt 0:00:32]} 56. Rxe8 {[%emt 0:00:00]} a4 {[%emt 0:00:19]} 57. e7 {[%emt 0:00:10]} Re6 {[%emt 0:00:00]} 58. Ra8 {[%emt 0:00:05]} 1-0

[Event "Eurasia Open Cup 2018"]
[Site "Jekaterienburg"]
[Date "2018.08.03"]
[Round "3"]
[White "Timofeev, Artyom"]
[Black "Rudometov, Maxim"]
[Result "1-0"]
[ECO "D35"]
[WhiteElo "2590"]
[BlackElo "2279"]
[Annotator "ChessBase"]
[PlyCount "81"]
[EventDate "2018.08.01"]
[EventType "swiss"]
[EventCountry "RUS"]
[SourceTitle "playchess.com"]
[Source "ChessBase"]
[SourceQuality "1"]
[TimeControl "5400+30"]

1. d4 {[%emt 0:00:00]} Nf6 {[%emt 0:00:27]} 2. c4 {[%emt 0:00:08]} e6 {[%emt 0:00:10]} 3. Nc3 {[%emt 0:01:36]} d5 {[%emt 0:00:51]} 4. cxd5 {[%emt 0:00:36]} Nxd5 {[%emt 0:00:30]} 5. e3 {[%emt 0:01:40]} Nxc3 {[%emt 0:07:06]} 6. bxc3 {[%emt 0:00:14]} Be7 {[%emt 0:00:32]} 7. Bd3 {[%emt 0:01:05]} Nd7 {[%emt 0:02:23]} 8. Nf3 {[%emt 0:00:55]} O-O {[%emt 0:02:49]} 9. Qc2 {[%emt 0:02:15]} h6 {[%emt 0:02:51]} 10. O-O {[%emt 0:00:22]} b6 {[%emt 0:02:17]} 11. e4 {[%emt 0:00:39]} Bb7 {[%emt 0:01:48]} 12. Bf4 {[%emt 0:00:21]} c5 {[%emt 0:03:30]} 13. Qd2 {[%emt 0:00:37]} Re8 {[%emt 0:02:10]} 14. Rfe1 {[%emt 0:03:35]} Bf8 {[%emt 0:04:35]} 15. Rad1 {[%emt 0:05:07]} cxd4 {[%emt 0:12:12]} 16. cxd4 {[%emt 0:00:48]} Rc8 {[%emt 0:02:03]} 17. h3 {[%emt 0:02:19]} Qe7 {[%emt 0:07:23]} 18. Rb1 {[%emt 0:12:10]} Red8 {[%emt 0:07:30]} 19. Qe2 {[%emt 0:00:25]} Rc3 {[%emt 0:07:45]} 20. Bd2 {[%emt 0:02:07]} Rc7 {[%emt 0:01:10]} 21. a4 {[%emt 0:00:09]} e5 {[%emt 0:11:29]} 22. d5 {[%emt 0:01:10]} Qf6 {[%emt 0:00:11]} 23. Nh2 {[%emt 0:03:03]} Qg6 {[%emt 0:04:44]} 24. a5 {[%emt 0:02:42]} Nc5 {[%emt 0:03:20]} 25. Bc4 {[%emt 0:05:44]} Bc8 {[%emt 0:05:28]} 26. Ng4 {[%emt 0:00:12]} Bxg4 {[%emt 0:01:14]} 27. hxg4 {[%emt 0:00:42]} Nd7 {[%emt 0:00:14]} 28. Rb3 {[%emt 0:00:27]} Bc5 {[%emt 0:00:55]} 29. Rg3 {[%emt 0:03:20]} Bd4 {[%emt 0:02:42]} 30. g5 {[%emt 0:01:59]} Nf6 {[%emt 0:01:58]} 31. Bb3 {[%emt 0:02:27]} Nh7 {[%emt 0:00:23]} 32. Rd3 {[%emt 0:08:02]} hxg5 {[%emt 0:01:28]} 33. g3 {[%emt 0:01:38]} Nf6 {[%emt 0:00:58]} 34. g4 {[%emt 0:02:24]} Nd7 {[%emt 0:01:08]} 35. Rh3 {[%emt 0:02:26]} Nc5 {[%emt 0:00:04]} 36. Ba2 {[%emt 0:00:13]} Qxe4 {[%emt 0:00:20]} 37. Qxe4 {[%emt 0:01:21]} Nxe4 {[%emt 0:00:04]} 38. Rxe4 {[%emt 0:00:04]} Rc2 {[%emt 0:00:03]} 39. Bxg5 {[%emt 0:00:08]} f6 {[%emt 0:00:24]} 40. Bb3 {[%emt 0:00:26]} Rb2 {[%emt 0:00:53]} 41. Bc1 {[%emt 0:00:20]} 1-0

[Event "Eurasia Open Cup 2018"]
[Site "Jekaterienburg"]
[Date "2018.08.03"]
[Round "3"]
[White "Pridorozhni, Aleksei"]
[Black "Looshnikov, Nikolai"]
[Result "1-0"]
[ECO "C13"]
[WhiteElo "2564"]
[BlackElo "2404"]
[Annotator "ChessBase"]
[PlyCount "101"]
[EventDate "2018.08.01"]
[EventType "swiss"]
[EventCountry "RUS"]
[SourceTitle "playchess.com"]
[Source "ChessBase"]
[SourceQuality "1"]
[TimeControl "5400+30"]

1. e4 {[%emt 0:03:42]} e6 {[%emt 0:00:00]} 2. d4 {[%emt 0:00:42]} d5 {[%emt 0:00:00]} 3. Nc3 {[%emt 0:00:00]} Nf6 {[%emt 0:00:00]} 4. Bg5 {[%emt 0:00:00]} dxe4 {[%emt 0:00:13]} 5. Nxe4 {[%emt 0:00:00]} Nbd7 {[%emt 0:00:06]} 6. Nf3 {[%emt 0:00:00]} Be7 {[%emt 0:00:00]} 7. Nxf6+ {[%emt 0:01:04]} Bxf6 {[%emt 0:00:25]} 8. h4 {[%emt 0:00:56]} c5 {[%emt 0:00:15]} 9. dxc5 {[%emt 0:01:01]} h6 {[%emt 0:02:52]} 10. Bxf6 {[%emt 0:02:47]} Qxf6 {[%emt 0:00:01]} 11. Qd4 {[%emt 0:00:41]} Qxd4 {[%emt 0:00:38]} 12. Nxd4 {[%emt 0:00:06]} Nxc5 {[%emt 0:00:04]} 13. Rh3 {[%emt 0:00:06]} Bd7 {[%emt 0:07:46]} 14. Re3 {[%emt 0:16:40]} O-O {[%emt 0:19:32]} 15. O-O-O {[%emt 0:00:09]} Rfc8 {[%emt 0:02:20]} 16. g4 {[%emt 0:03:37]} g6 {[%emt 0:04:57]} 17. g5 {[%emt 0:03:53]} hxg5 {[%emt 0:12:38]} 18. hxg5 {[%emt 0:00:00]} Kf8 {[%emt 0:00:24]} 19. Nf3 {[%emt 0:01:28]} Bc6 {[%emt 0:06:36]} 20. Ne5 {[%emt 0:00:55]} Ke7 {[%emt 0:00:26]} 21. Be2 {[%emt 0:07:47]} Nd7 {[%emt 0:02:45]} 22. Nxc6+ {[%emt 0:04:22]} bxc6 {[%emt 0:03:33]} 23. Ba6 {[%emt 0:06:26]} Rcb8 {[%emt 0:07:41]} 24. Rc3 {[%emt 0:02:59]} Rb6 {[%emt 0:01:06]} 25. Bf1 {[%emt 0:00:06]} Rab8 {[%emt 0:04:22]} 26. b3 {[%emt 0:00:10]} Rh8 {[%emt 0:00:38]} 27. a4 {[%emt 0:00:09]} Nb8 {[%emt 0:07:02]} 28. Kb2 {[%emt 0:02:23]} Rh2 {[%emt 0:02:12]} 29. f3 {[%emt 0:02:22]} Rh1 {[%emt 0:02:33]} 30. f4 {[%emt 0:03:47]} Rb4 {[%emt 0:02:13]} 31. Rf3 {[%emt 0:00:06]} Re4 {[%emt 0:00:42]} 32. Rd2 {[%emt 0:00:10]} Rh4 {[%emt 0:01:21]} 33. Rdf2 {[%emt 0:01:14]} Nd7 {[%emt 0:01:15]} 34. Bg2 {[%emt 0:01:35]} c5 {[%emt 0:01:22]} 35. a5 {[%emt 0:01:20]} Rb4 {[%emt 0:07:50]} 36. Bf1 {[%emt 0:01:14]} e5 {[%emt 0:00:08]} 37. fxe5 {[%emt 0:02:23]} Nxe5 {[%emt 0:00:35]} 38. Rf6 {[%emt 0:00:04]} Rhg4 {[%emt 0:00:39]} 39. Ra6 {[%emt 0:01:51]} Rb7 {[%emt 0:00:42]} 40. Rg2 {[%emt 0:00:17]} Rf4 {[%emt 0:01:12]} 41. Be2 {[%emt 0:04:17]} f6 {[%emt 0:00:42]} 42. Rg3 {[%emt 0:02:30]} Rf5 {[%emt 0:00:38]} 43. Re3 {[%emt 0:00:10]} Rxg5 {[%emt 0:00:17]} 44. Rh3 {[%emt 0:00:04]} Kf8 {[%emt 0:00:16]} 45. Rh8+ {[%emt 0:00:18]} Kg7 {[%emt 0:00:38]} 46. Ra8 {[%emt 0:00:05]} Rg2 {[%emt 0:00:52]} 47. R8xa7 {[%emt 0:00:07]} Rxa7 {[%emt 0:00:00]} 48. Rxa7+ {[%emt 0:00:00]} Kh6 {[%emt 0:00:14]} 49. Bb5 {[%emt 0:00:10]} g5 {[%emt 0:01:16]} 50. a6 {[%emt 0:00:08]} Rd2 {[%emt 0:00:24]} 51. Ra8 {[%emt 0:00:04]} 1-0

[Event "Eurasia Open Cup 2018"]
[Site "Jekaterienburg"]
[Date "2018.08.03"]
[Round "3"]
[White "Tsydypov, Zhamsaran"]
[Black "Zasukhin, Vadim"]
[Result "1-0"]
[ECO "C02"]
[WhiteElo "2514"]
[BlackElo "2252"]
[Annotator "ChessBase"]
[PlyCount "47"]
[EventDate "2018.08.01"]
[EventType "swiss"]
[EventCountry "RUS"]
[SourceTitle "playchess.com"]
[Source "ChessBase"]
[SourceQuality "1"]
[TimeControl "5400+30"]

1. e4 {[%emt 0:00:42]} e6 {[%emt 0:00:00]} 2. d4 {[%emt 0:00:00]} d5 {[%emt 0:00:00]} 3. e5 {[%emt 0:00:21]} c5 {[%emt 0:00:00]} 4. c3 {[%emt 0:00:05]} Qb6 {[%emt 0:00:00]} 5. Nf3 {[%emt 0:01:08]} Nc6 {[%emt 0:00:12]} 6. Be2 {[%emt 0:00:31]} cxd4 {[%emt 0:00:38]} 7. cxd4 {[%emt 0:00:00]} Nh6 {[%emt 0:00:27]} 8. Bxh6 {[%emt 0:00:09]} Qxb2 {[%emt 0:00:00]} 9. Nc3 {[%emt 0:00:29]} Qxc3+ {[%emt 0:01:02]} 10. Bd2 {[%emt 0:00:36]} Qb2 {[%emt 0:02:33]} 11. O-O {[%emt 0:00:39]} a6 {[%emt 0:00:27]} 12. Rb1 {[%emt 0:06:07]} Qxa2 {[%emt 0:13:55]} 13. Bd3 {[%emt 0:05:38]} Qa3 {[%emt 0:01:14]} 14. Qc2 {[%emt 0:04:09]} Qe7 {[%emt 0:07:53]} 15. Bxh7 {[%emt 0:20:54]} g6 {[%emt 0:04:00]} 16. Ng5 {[%emt 0:00:54]} Kd7 {[%emt 0:12:49]} 17. Rfc1 {[%emt 0:03:47]} Kd8 {[%emt 0:20:27]} 18. Rb6 {[%emt 0:07:54]} Ra7 {[%emt 0:08:34]} 19. Ba5 {[%emt 0:05:26]} Ke8 {[%emt 0:07:59]} 20. Nxf7 {[%emt 0:00:32]} Qh4 {[%emt 0:04:21]} 21. Qxg6 {[%emt 0:00:30]} Kd7 {[%emt 0:05:13]} 22. Nxh8 {[%emt 0:00:00]} Qf4 {[%emt 0:03:32]} 23. Qc2 {[%emt 0:00:30]} Bh6 {[%emt 0:00:41]} 24. Rxc6 {[%emt 0:00:09]} 1-0

[Event "Eurasia Open Cup 2018"]
[Site "Jekaterienburg"]
[Date "2018.08.03"]
[Round "3"]
[White "Fakhrutdinov, Timur"]
[Black "Yuferev, Oleg"]
[Result "1-0"]
[ECO "C16"]
[WhiteElo "2463"]
[BlackElo "2223"]
[Annotator "ChessBase"]
[PlyCount "121"]
[EventDate "2018.08.01"]
[EventType "swiss"]
[EventCountry "RUS"]
[SourceTitle "playchess.com"]
[Source "ChessBase"]
[SourceQuality "1"]
[TimeControl "5400+30"]

1. e4 {[%emt 0:00:00]} e6 {[%emt 0:00:13]} 2. d4 {[%emt 0:00:05]} d5 {[%emt 0:00:06]} 3. Nc3 {[%emt 0:00:05]} Bb4 {[%emt 0:00:09]} 4. e5 {[%emt 0:00:07]} Ne7 {[%emt 0:00:08]} 5. a3 {[%emt 0:00:09]} Bxc3+ {[%emt 0:00:08]} 6. bxc3 {[%emt 0:00:04]} b6 {[%emt 0:00:09]} 7. Qg4 {[%emt 0:00:20]} Ng6 {[%emt 0:00:10]} 8. h4 {[%emt 0:00:29]} h5 {[%emt 0:00:07]} 9. Qg3 {[%emt 0:00:12]} Ba6 {[%emt 0:00:08]} 10. Bg5 {[%emt 0:02:07]} Qd7 {[%emt 0:00:29]} 11. Bxa6 {[%emt 0:00:28]} Nxa6 {[%emt 0:00:04]} 12. Ne2 {[%emt 0:00:53]} Qa4 {[%emt 0:07:07]} 13. O-O {[%emt 0:04:18]} Qxc2 {[%emt 0:06:40]} 14. Qe3 {[%emt 0:00:56]} Ne7 {[%emt 0:11:25]} 15. Rac1 {[%emt 0:08:00]} Qa4 {[%emt 0:23:15]} 16. Bxe7 {[%emt 0:05:37]} Kxe7 {[%emt 0:00:05]} 17. Qg5+ {[%emt 0:00:25]} Kd7 {[%emt 0:05:59]} 18. Qxg7 {[%emt 0:00:47]} Raf8 {[%emt 0:00:05]} 19. Nf4 {[%emt 0:04:05]} Ke8 {[%emt 0:08:24]} 20. Nh3 {[%emt 0:07:41]} Rfg8 {[%emt 0:08:48]} 21. Qf6 {[%emt 0:00:48]} Qd7 {[%emt 0:03:11]} 22. Ng5 {[%emt 0:00:52]} Qe7 {[%emt 0:00:26]} 23. Qf3 {[%emt 0:00:51]} b5 {[%emt 0:02:25]} 24. Qd3 {[%emt 0:03:10]} c6 {[%emt 0:00:08]} 25. f4 {[%emt 0:00:18]} Nc7 {[%emt 0:00:54]} 26. f5 {[%emt 0:00:25]} exf5 {[%emt 0:06:14]} 27. Rxf5 {[%emt 0:00:00]} Rxg5 {[%emt 0:02:33]} 28. hxg5 {[%emt 0:00:59]} Ne6 {[%emt 0:00:07]} 29. Rf6 {[%emt 0:04:09]} Nxg5 {[%emt 0:00:15]} 30. Rxc6 {[%emt 0:07:42]} Qb7 {[%emt 0:00:07]} 31. Rf6 {[%emt 0:05:15]} Ne4 {[%emt 0:02:27]} 32. Rf4 {[%emt 0:00:08]} Qc6 {[%emt 0:01:02]} 33. Rcf1 {[%emt 0:01:31]} h4 {[%emt 0:04:01]} 34. Rg4 {[%emt 0:06:07]} a6 {[%emt 0:01:52]} 35. Qh3 {[%emt 0:02:12]} Qxc3 {[%emt 0:07:39]} 36. Qxc3 {[%emt 0:00:37]} Nxc3 {[%emt 0:00:02]} 37. Kh2 {[%emt 0:01:29]} Ne4 {[%emt 0:00:43]} 38. Rg7 {[%emt 0:03:20]} Rf8 {[%emt 0:00:07]} 39. Rh7 {[%emt 0:00:19]} Ng5 {[%emt 0:01:08]} 40. Rxh4 {[%emt 0:01:45]} Ne6 {[%emt 0:00:16]} 41. Rb1 {[%emt 0:04:17]} Ke7 {[%emt 0:00:44]} 42. a4 {[%emt 0:01:00]} Rb8 {[%emt 0:00:08]} 43. Rb4 {[%emt 0:01:17]} Kd7 {[%emt 0:00:52]} 44. Rh7 {[%emt 0:00:45]} Ke7 {[%emt 0:00:30]} 45. Rh3 {[%emt 0:00:40]} Nc7 {[%emt 0:00:21]} 46. Rc3 {[%emt 0:03:33]} Kd7 {[%emt 0:00:39]} 47. Rc5 {[%emt 0:00:25]} Rh8+ {[%emt 0:00:25]} 48. Kg3 {[%emt 0:00:32]} Rh1 {[%emt 0:00:14]} 49. axb5 {[%emt 0:00:26]} axb5 {[%emt 0:00:06]} 50. Rb2 {[%emt 0:00:19]} Rd1 {[%emt 0:00:29]} 51. Rf2 {[%emt 0:01:42]} Rd3+ {[%emt 0:00:25]} 52. Kh2 {[%emt 0:00:22]} Ne6 {[%emt 0:00:17]} 53. Rxd5+ {[%emt 0:00:06]} Ke7 {[%emt 0:00:03]} 54. Rxb5 {[%emt 0:00:20]} Nxd4 {[%emt 0:00:28]} 55. Rb7+ {[%emt 0:00:15]} Ke6 {[%emt 0:00:06]} 56. Rbxf7 {[%emt 0:00:15]} Kxe5 {[%emt 0:00:06]} 57. Re7+ {[%emt 0:00:13]} Kd6 {[%emt 0:00:09]} 58. Re8 {[%emt 0:00:26]} Kd7 {[%emt 0:00:57]} 59. Re4 {[%emt 0:00:17]} Kd6 {[%emt 0:01:06]} 60. Rf8 {[%emt 0:00:12]} Kd5 {[%emt 0:00:14]} 61. Rxd4+ {[%emt 0:00:49]} 1-0

[Event "Eurasia Open Cup 2018"]
[Site "Jekaterienburg"]
[Date "2018.08.03"]
[Round "3"]
[White "Mokshanov, Alexey"]
[Black "Pakeeva, Namlana"]
[Result "1-0"]
[ECO "B22"]
[WhiteElo "2439"]
[BlackElo "1623"]
[Annotator "NA"]
[PlyCount "75"]
[EventDate "2018.08.01"]
[EventType "swiss"]
[EventCountry "RUS"]
[SourceTitle "playchess.com"]
[Source "ChessBase"]
[SourceQuality "1"]
[TimeControl "5400+30"]

1. e4 {[%emt 0:00:00]} c5 {[%emt 0:00:05]} 2. Nf3 {[%emt 0:00:04]} e6 {[%emt 0:00:08]} 3. c3 {[%emt 0:00:05]} Nf6 {[%emt 0:00:32]} 4. e5 {[%emt 0:00:00]} Nd5 {[%emt 0:00:06]} 5. Bc4 {[%emt 0:00:00]} d6 {[%emt 0:00:09]} 6. d4 {[%emt 0:00:07]} cxd4 {[%emt 0:00:26]} 7. cxd4 {[%emt 0:00:07]} Nc6 {[%emt 0:00:24]} 8. O-O {[%emt 0:00:09]} Be7 {[%emt 0:00:16]} 9. a3 {[%emt 0:01:33]} Nb6 {[%emt 0:01:02] B22: Sicilian: 2 c3} (9... O-O 10. Bd3 Bd7 11. Qc2 g6 12. Bh6 Re8 13. Nbd2 Rc8 14. Qd1 dxe5 15. dxe5 Qc7 16. Qe1 Red8 17. Qe4 b5 {½-½ (70) Wang,H (2734)-Yu,Y (2734) Danzhou 2016 CBM 174 [Bronznik,V]}) 10. Bd3 {[%emt 0:00:14]} dxe5 {[%emt 0:03:20]} 11. dxe5 {[%emt 0:00:10]} O-O {[%emt 0:03:43]} 12. Nc3 {[%emt 0:02:26]} Nd7 {[%emt 0:07:26]} 13. Bf4 {[%emt 0:03:18]} b6 $146 {[%emt 0:07:30]} ({Predecessor:} 13... Nc5 14. Bc2 Qxd1 15. Rfxd1 a5 16. Rac1 b6 17. Ne4 {½-½ (58) Kiefhaber,V (2242)-Fojudzka,A (2221) Germany 2011}) 14. Qe2 {[%emt 0:00:41]} Nc5 {[%emt 0:04:37]} 15. Bb5 {[%emt 0:02:55]} Bb7 {[%emt 0:03:30]} 16. Rfd1 {[%emt 0:05:30]} Qc7 {[%emt 0:02:41]} 17. b4 {[%emt 0:00:09]} Nd7 {[%emt 0:07:31]} 18. Bd3 {[%emt 0:23:33]} a6 {[%emt 0:16:26]} ({Don't blunder} 18... Nxb4 $2 19. Nb5 $18 (19. axb4 Qxc3 20. Be4 Bxe4 $16)) 19. Rac1 {[%emt 0:04:00]} ({Don't take} 19. Qe4 $6 g6 $16) 19... b5 {[%emt 0:03:50]} 20. Ne4 {[%emt 0:08:58]} Nb6 {[%emt 0:06:47]} 21. Bg5 $2 {[%emt 0:00:00]} (21. Nf6+ $18 {and White stays clearly on top.} gxf6 22. Ng5) 21... Bxg5 {[%emt 0:02:07]} 22. Nexg5 {[%emt 0:00:47]} h6 {[%emt 0:02:23]} 23. Qe4 {[%emt 0:06:38]} g6 {[%emt 0:03:21] [#]} 24. Nh3 $14 {[%emt 0:03:00]} (24. Nxe6 $1 $18 {[%mdl 512]} fxe6 25. Qxg6+ Qg7 26. Qxe6+ Kh8 27. Nh4 Nxe5 {[#]} 28. Qxe5 $1 {[%mdl 512]} (28. Qxb6 Nf3+ 29. Nxf3 Bxf3 $11) 28... Qxe5 29. Ng6+ Kg7 30. Nxe5) 24... Nd5 {[%emt 0:04:35]} 25. Nf4 {[%emt 0:00:20]} Nde7 {[%emt 0:06:34]} 26. h4 {[%emt 0:01:11]} Nf5 {[%emt 0:03:02]} 27. h5 {[%emt 0:06:27]} Kh7 {[%emt 0:00:15]} 28. hxg6+ {[%emt 0:02:47]} fxg6 {[%emt 0:00:21]} 29. Nxe6 {[%emt 0:00:10]} Qb6 {[%emt 0:00:09]} 30. Nxf8+ {[%emt 0:04:16]} Rxf8 {[%emt 0:00:00]} 31. Qg4 {[%emt 0:00:09]} Bc8 {[%emt 0:00:04]} 32. Bxf5 {[%emt 0:00:03]} Bxf5 {[%emt 0:00:00]} 33. Qf4 {[%emt 0:00:00]} Ne7 {[%emt 0:00:19]} 34. Qd4 {[%emt 0:00:30]} Qb7 {[%emt 0:01:59]} 35. Qd6 {[%emt 0:00:00]} Rc8 {[%emt 0:00:25]} 36. e6 {[%emt 0:00:55]} Bg4 {[%emt 0:00:00]} 37. Rxc8 {[%emt 0:00:06]} Nxc8 {[%emt 0:01:04]} 38. Qd7+ {[%emt 0:00:12]} 1-0

[Event "Eurasia Open Cup 2018"]
[Site "Jekaterienburg"]
[Date "2018.08.03"]
[Round "3"]
[White "Shinkevich, Vitaly"]
[Black "Kryakvin, Dmitry"]
[Result "1/2-1/2"]
[ECO "D27"]
[WhiteElo "2437"]
[BlackElo "2591"]
[Annotator "ChessBase"]
[PlyCount "36"]
[EventDate "2018.08.01"]
[EventType "swiss"]
[EventCountry "RUS"]
[SourceTitle "playchess.com"]
[Source "ChessBase"]
[SourceQuality "1"]
[TimeControl "5400+30"]

1. Nf3 {[%emt 0:00:00]} d5 {[%emt 0:00:00]} 2. d4 {[%emt 0:00:00]} Nf6 {[%emt 0:00:00]} 3. c4 {[%emt 0:00:00]} dxc4 {[%emt 0:00:00]} 4. e3 {[%emt 0:03:34]} e6 {[%emt 0:00:11]} 5. Bxc4 {[%emt 0:00:09]} c5 {[%emt 0:00:35]} 6. O-O {[%emt 0:00:28]} Nc6 {[%emt 0:00:10]} 7. Nc3 {[%emt 0:02:22]} a6 {[%emt 0:00:55]} 8. a4 {[%emt 0:03:29]} Be7 {[%emt 0:02:10]} 9. Qe2 {[%emt 0:01:19]} cxd4 {[%emt 0:01:39]} 10. Rd1 {[%emt 0:00:14]} O-O {[%emt 0:15:03]} 11. exd4 {[%emt 0:00:01]} Nd5 {[%emt 0:01:30]} 12. Qe4 {[%emt 0:00:44]} Nf6 {[%emt 0:05:33]} 13. Qh4 {[%emt 0:06:49]} Nd5 {[%emt 0:00:19]} 14. Qe4 {[%emt 0:00:14]} Nf6 {[%emt 0:09:57]} 15. Qh4 {[%emt 0:00:50]} Nd5 {[%emt 0:00:25]} 16. Qe4 {[%emt 0:00:28]} Nf6 {[%emt 0:00:07]} 17. Qh4 {[%emt 0:01:35]} Nd5 {[%emt 0:00:01]} 18. Qg3 {[%emt 0:00:30]} Bd6 {[%emt 0:00:30]} 1/2-1/2

[Event "Eurasia Open Cup 2018"]
[Site "Jekaterienburg"]
[Date "2018.08.03"]
[Round "3"]
[White "Drygalov, Sergey"]
[Black "Shaposhnikov, Evgeny"]
[Result "1/2-1/2"]
[ECO "E16"]
[WhiteElo "2433"]
[BlackElo "2588"]
[Annotator "ChessBase"]
[PlyCount "115"]
[EventDate "2018.08.01"]
[EventType "swiss"]
[EventCountry "RUS"]
[SourceTitle "playchess.com"]
[Source "ChessBase"]
[SourceQuality "1"]
[TimeControl "5400+30"]

1. d4 {[%emt 0:00:00]} Nf6 {[%emt 0:00:31]} 2. c4 {[%emt 0:00:22]} e6 {[%emt 0:00:11]} 3. Nf3 {[%emt 0:00:04]} b6 {[%emt 0:00:21]} 4. g3 {[%emt 0:00:04]} Bb4+ {[%emt 0:00:24]} 5. Bd2 {[%emt 0:00:04]} c5 {[%emt 0:00:11]} 6. Bg2 {[%emt 0:01:02]} Bb7 {[%emt 0:00:13]} 7. Bxb4 {[%emt 0:00:28]} cxb4 {[%emt 0:00:02]} 8. O-O {[%emt 0:00:06]} a5 {[%emt 0:00:21]} 9. Qd3 {[%emt 0:03:17]} O-O {[%emt 0:01:44]} 10. Nbd2 {[%emt 0:00:09]} d6 {[%emt 0:01:18]} 11. a3 {[%emt 0:03:12]} Na6 {[%emt 0:00:48]} 12. Rfd1 {[%emt 0:03:41]} Qc7 {[%emt 0:02:39]} 13. e4 {[%emt 0:08:20]} e5 {[%emt 0:01:24]} 14. Qe3 {[%emt 0:08:58]} Rfe8 {[%emt 0:03:11]} 15. d5 {[%emt 0:01:01]} Bc8 {[%emt 0:00:11]} 16. Ne1 {[%emt 0:03:24]} Ng4 {[%emt 0:08:59]} 17. Qe2 {[%emt 0:02:04]} f5 {[%emt 0:00:43]} 18. Nd3 {[%emt 0:01:47]} Bd7 {[%emt 0:12:44]} 19. axb4 {[%emt 0:31:11]} Nxb4 {[%emt 0:01:19]} 20. Nxb4 {[%emt 0:01:42]} axb4 {[%emt 0:00:09]} 21. exf5 {[%emt 0:00:05]} Bxf5 {[%emt 0:01:38]} 22. Be4 {[%emt 0:00:45]} Bd7 {[%emt 0:10:07]} 23. Kg2 {[%emt 0:02:13]} Nf6 {[%emt 0:02:31]} 24. f3 {[%emt 0:03:20]} Rf8 {[%emt 0:03:19]} 25. Bd3 {[%emt 0:01:10]} Qc8 {[%emt 0:11:43]} 26. Rxa8 {[%emt 0:06:25]} Qxa8 {[%emt 0:00:32]} 27. Nb3 {[%emt 0:01:39]} Qc8 {[%emt 0:03:29]} 28. Nd2 {[%emt 0:03:08]} Bh3+ {[%emt 0:05:13]} 29. Kh1 {[%emt 0:00:52]} h5 {[%emt 0:03:23]} 30. Qe3 {[%emt 0:03:07]} Qc5 {[%emt 0:01:50]} 31. Qxc5 {[%emt 0:00:47]} bxc5 {[%emt 0:00:19]} 32. Ra1 {[%emt 0:00:20]} g5 {[%emt 0:07:23]} 33. Kg1 {[%emt 0:01:09]} Bc8 {[%emt 0:03:35]} 34. Ra7 {[%emt 0:04:15]} g4 {[%emt 0:01:26]} 35. fxg4 {[%emt 0:00:29]} Bxg4 {[%emt 0:04:01]} 36. Kg2 {[%emt 0:02:08]} e4 {[%emt 0:01:24]} 37. Nxe4 {[%emt 0:00:55]} Nxe4 {[%emt 0:00:08]} 38. Bxe4 {[%emt 0:00:02]} Re8 {[%emt 0:00:18]} 39. Bh7+ {[%emt 0:03:30]} Kh8 {[%emt 0:00:11]} 40. h3 {[%emt 0:00:23]} Re2+ {[%emt 0:01:09]} 41. Kf1 {[%emt 0:00:03]} Bf3 {[%emt 0:00:08]} 42. b3 {[%emt 0:01:22]} Rb2 {[%emt 0:00:39]} 43. Bf5 {[%emt 0:00:10]} Rxb3 {[%emt 0:01:39]} 44. g4 {[%emt 0:00:02]} hxg4 {[%emt 0:02:12]} 45. hxg4 {[%emt 0:00:04]} Ra3 {[%emt 0:02:41]} 46. Rb7 {[%emt 0:00:02]} Rc3 {[%emt 0:00:41]} 47. Kf2 {[%emt 0:01:50]} Bd1 {[%emt 0:01:13]} 48. Rb6 {[%emt 0:00:44]} b3 {[%emt 0:02:45]} 49. Rxd6 {[%emt 0:00:02]} Rxc4 {[%emt 0:00:03]} 50. Rb6 {[%emt 0:00:02]} Rd4 {[%emt 0:01:27]} 51. d6 {[%emt 0:00:01]} Bc2 {[%emt 0:00:30]} 52. Ke3 {[%emt 0:00:02]} Kg7 {[%emt 0:00:30]} 53. d7 {[%emt 0:00:01]} Kf7 {[%emt 0:00:30]} 54. Rb8 {[%emt 0:00:41]} Bxf5 {[%emt 0:00:02]} 55. gxf5 {[%emt 0:00:01]} Rxd7 {[%emt 0:00:44]} 56. Rxb3 {[%emt 0:00:02]} Kf6 {[%emt 0:00:44]} 57. Rb5 {[%emt 0:00:08]} Rd5 {[%emt 0:00:28]} 58. Ke4 {[%emt 0:00:02]} 1/2-1/2